bitfinex-derivatives/quotes_SOLF0:USTF0_20250109
["timestamp","ask_amount","ask_price","bid_price","bid_amount"]
[1736438501321,20.828735,192.0,191.84,20.828735]
[1736438501626,2.6056,191.97,191.92,2.6061]
[1736438502520,2.6053,191.98,191.93,2.606]
[1736438502721,26.008735,192.0,191.88,1.5958]
[1736438503125,2.6055,191.97,191.91,2.6061]
[1736438503326,26.008735,192.0,191.88,1.5958]
[1736438503526,20.828735,191.97,191.88,1.5958]
[1736438503723,20.828735,191.97,191.82,1.5981]
[1736438503926,2.6063,191.91,191.86,2.6069]
[1736438504127,20.828735,191.94,191.83,1.5869]
[1736438504931,20.828735,191.97,191.83,1.5869]
[1736438505124,26.008735,192.0,191.84,20.828735]
[1736438505320,20.828735,192.03,191.87,20.828735]
[1736438506132,5.18,192.04,191.9,20.828735]
[1736438506334,5.18,192.04,191.99,2.6052]
[1736438506630,5.18,192.04,191.93,20.828735]
[1736438507023,26.008735,192.09,192.0,2.605]
[1736438507226,26.008735,192.09,191.93,20.828735]
[1736438507426,2.6044,192.05,191.97,2.6053]
[1736438507622,2.6044,192.05,191.93,20.828735]
[1736438507833,26.008735,192.09,191.93,20.828735]
[1736438508038,2.6044,192.05,191.99,2.605]
[1736438508335,26.008735,192.09,191.93,20.828735]
[1736438509034,2.6042,192.06,191.93,20.828735]
[1736438509436,26.008735,192.09,191.93,20.828735]
[1736438510233,2.6044,192.05,191.99,2.6051]
[1736438511036,5.18,192.09,191.96,20.828735]
[1736438511237,26.008735,192.09,191.93,20.828735]
[1736438511934,5.18,192.09,191.93,20.828735]
[1736438512235,2.6041,192.08,192.01,2.6048]
[1736438512736,20.828735,192.12,191.96,20.828735]
[1736438512938,102.048735,192.15,191.99,20.828735]
[1736438513134,102.048735,192.15,192.02,20.828735]
[1736438513135,81.22,192.15,192.02,20.828735]
[1736438513335,1.3099,192.19,192.03,3.0657]
[1736438513739,2.6028,192.17,192.1,2.6036]
[1736438513933,26.008735,192.2,192.05,20.828735]
[1736438514145,5.18,192.2,192.08,20.828735]
[1736438514340,0.8787,192.25,192.15,2.6029]
[1736438514538,26.008735,192.26,192.09,1.6309]
[1736438514742,2.6023,192.2,192.14,2.6031]
[1736438514941,2.6023,192.2,192.09,1.6309]
[1736438515340,2.6023,192.2,192.14,2.6031]
[1736438515538,5.18,192.26,192.09,1.6309]
[1736438515839,20.828735,192.2,192.09,1.6309]
[1736438516142,20.828735,192.23,192.09,1.6309]
[1736438516333,20.828735,192.23,192.15,2.603]
[1736438516532,20.828735,192.23,192.09,1.6309]
[1736438516738,2.6023,192.21,192.09,1.6309]
[1736438516939,20.828735,192.2,192.09,1.6309]
[1736438517342,20.828735,192.17,192.05,2.6042]
[1736438517639,26.008735,192.17,192.05,2.6042]
[1736438517834,26.008735,192.17,192.04,1.4957]
[1736438517835,2.6034,192.13,192.04,1.4957]
[1736438518035,5.18,192.17,192.04,1.4957]
[1736438519236,7.7828,192.17,192.1,2.6035]
[1736438519435,7.7828,192.17,192.04,1.4957]
[1736438519644,5.18,192.17,192.1,2.6036]
[1736438520039,5.18,192.17,192.04,1.4957]
[1736438520843,20.828735,192.23,192.08,20.828735]
[1736438521040,26.008735,192.26,192.08,20.828735]
[1736438521446,26.008735,192.26,192.15,2.6029]
[1736438521749,5.18,192.25,192.08,20.828735]
[1736438522141,20.828735,192.26,192.16,2.6027]
[1736438522344,2.6022,192.22,192.16,2.6027]
[1736438522945,2.6018,192.24,192.11,20.828735]
[1736438523243,86.44,192.28,192.12,1.5049]
[1736438523442,20.828735,192.32,192.17,20.828735]
[1736438523638,164.6362991,192.35,192.17,20.828735]
[1736438523843,2.6006,192.33,192.28,2.6012]
[1736438524242,164.6362991,192.35,192.28,2.6012]
[1736438524546,20.828735,192.35,192.28,2.6012]
[1736438524751,2.6007,192.33,192.28,2.6012]
[1736438525143,20.828735,192.35,192.28,2.6012]
[1736438525342,2.6006,192.33,192.29,2.6011]
[1736438525543,20.828735,192.35,192.29,2.6011]
[1736438525739,0.877,192.37,192.29,2.6011]
[1736438525943,0.877,192.37,192.28,2.6012]
[1736438526139,20.828735,192.35,192.17,20.828735]
[1736438526345,2.6011,192.29,192.25,2.6016]
[1736438526645,20.828735,192.32,192.15,5.18]
[1736438526841,20.828735,192.29,192.15,5.18]
[1736438527046,20.828735,192.29,192.24,2.6017]
[1736438527243,20.828735,192.29,192.15,5.18]
[1736438527845,2.6012,192.28,192.15,5.18]
[1736438528045,2.6012,192.28,192.24,2.6018]
[1736438528245,5.18,192.3,192.14,20.828735]
[1736438528442,5.18,192.3,192.17,20.828735]
[1736438528649,20.828735,192.35,192.2,20.828735]
[1736438528849,2.601,192.31,192.2,20.828735]
[1736438529049,5.18,192.36,192.2,20.828735]
[1736438529249,5.18,192.36,192.27,2.6013]
[1736438529451,5.18,192.36,192.17,20.828735]
[1736438530149,2.601,192.3,192.25,2.6016]
[1736438530354,5.18,192.36,192.17,20.828735]
[1736438530650,2.601,192.3,192.17,20.828735]
[1736438531254,6.057,192.37,192.2,20.828735]
[1736438531746,20.828735,192.32,192.17,20.828735]
[1736438532247,2.6008,192.31,192.17,20.828735]
[1736438532552,20.828735,192.35,192.2,20.828735]
[1736438532845,2.6007,192.33,192.27,2.6013]
[1736438533045,6.057,192.37,192.22,1.588]
[1736438533450,2.6004,192.34,192.28,2.6011]
[1736438533954,26.885735,192.37,192.28,2.6011]
[1736438534151,26.885735,192.37,192.23,1.4864]
[1736438534152,26.885735,192.37,192.3,2.601]
[1736438534353,26.008735,192.37,192.3,2.601]
[1736438534653,2.6004,192.35,192.3,2.601]
[1736438535451,2.6001,192.37,192.23,22.315135]
[1736438536153,2.6002,192.36,192.23,22.315135]
[1736438536550,20.828735,192.4,192.23,22.315135]
[1736438536749,2.6002,192.36,192.23,22.315135]
[1736438536949,20.828735,192.37,192.28,2.6012]
[1736438537252,2.6006,192.33,192.23,1.4864]
[1736438537451,20.828735,192.37,192.23,22.315135]
[1736438537651,26.008735,192.4,192.23,22.315135]
[1736438538049,2.6,192.37,192.23,22.315135]
[1736438538250,26.008735,192.4,192.23,22.315135]
[1736438538755,20.828735,192.34,192.23,1.4864]
[1736438538955,2.6014,192.28,192.23,1.4864]
[1736438539452,20.828735,192.28,192.17,59.04371949]
[1736438539856,20.828735,192.28,192.19,2.6024]
[1736438540052,2.6016,192.26,192.19,2.6024]
[1736438540355,20.828735,192.28,192.17,59.04371949]
[1736438540554,2.6018,192.24,192.17,59.04371949]
[1736438540756,20.828735,192.28,192.17,59.04371949]
[1736438540956,20.828735,192.28,192.2,2.6023]
[1736438541156,20.828735,192.28,192.17,59.04371949]
[1736438541353,20.828735,192.31,192.17,59.04371949]
[1736438541561,26.008735,192.31,192.16,4.5396]
[1736438541854,5.18,192.31,192.17,20.828735]
[1736438542053,5.18,192.31,192.26,2.6014]
[1736438542455,5.18,192.31,192.2,20.828735]
[1736438542655,26.008735,192.37,192.29,2.601]
[1736438543051,26.008735,192.37,192.24,1.5174]
[1736438543659,26.008735,192.37,192.25,1.4895]
[1736438543857,20.828735,192.37,192.25,3.0752]
[1736438544154,5.18,192.38,192.32,2.6007]
[1736438544348,5.18,192.38,192.25,3.0752]
[1736438544349,2.6001,192.37,192.25,3.0752]
[1736438544550,5.18,192.38,192.31,2.6007]
[1736438544854,5.18,192.38,192.25,3.0752]
[1736438545063,2.6002,192.36,192.25,3.0752]
[1736438545659,2.6002,192.36,192.31,2.6007]
[1736438545859,2.6,192.37,192.25,3.0752]
[1736438546259,5.18,192.38,192.25,3.0752]
[1736438546460,2.6003,192.35,192.25,3.0752]
[1736438546758,2.6003,192.35,192.3,2.6009]
[1736438546958,2.6002,192.36,192.25,3.0752]
[1736438547165,5.18,192.38,192.25,3.0752]
[1736438547559,2.6005,192.34,192.25,3.0752]
[1736438547859,20.828735,192.34,192.25,3.0752]
[1736438548064,2.6011,192.29,192.25,3.0752]
[1736438548964,2.6013,192.28,192.24,2.6017]
[1736438549163,20.828735,192.28,192.18,4.604]
[1736438549367,20.828735,192.28,192.18,1.5724]
[1736438549560,2.602,192.23,192.18,1.5724]
[1736438549762,20.828735,192.28,192.18,1.5724]
[1736438549963,2.6017,192.25,192.19,2.6024]
[1736438550163,2.6017,192.25,192.18,1.5724]
[1736438550467,20.828735,192.28,192.18,1.5724]
[1736438550468,2.6015,192.26,192.18,1.5724]
[1736438550663,20.828735,192.28,192.18,1.5724]
[1736438551369,2.6017,192.25,192.2,2.6022]
[1736438551569,2.6017,192.25,192.18,1.5724]
[1736438551570,20.828735,192.28,192.18,1.5724]
[1736438552269,2.6014,192.27,192.23,2.6018]
[1736438552667,2.6011,192.29,192.25,2.6016]
[1736438552970,164.6362991,192.31,192.18,1.5724]
[1736438553265,2.6011,192.3,192.25,2.6015]
[1736438553473,20.828735,192.31,192.18,1.5724]
[1736438553666,144.2389641,192.32,192.19,1.5999]
[1736438553874,143.8075641,192.32,192.29,2.6011]
[1736438554172,143.8075641,192.31,192.29,2.6011]
[1736438554467,146.4083641,192.31,192.21,20.828735]
[1736438554871,2.6008,192.31,192.21,20.828735]
[1736438556270,20.828735,192.28,192.23,2.6019]
[1736438556470,20.828735,192.28,192.19,1.5999]
[1736438556676,2.6015,192.26,192.19,1.5999]
[1736438556871,2.6015,192.26,192.22,2.602]
[1736438557271,2.6018,192.24,192.2,2.6023]
[1736438557472,20.828735,192.28,192.19,1.5999]
[1736438557775,20.828735,192.28,192.18,1.5724]
[1736438558476,143.8075641,192.28,192.18,1.5724]
[1736438558677,143.8075641,192.28,192.19,20.828735]
[1736438559080,143.8075641,192.3,192.19,20.828735]
[1736438559380,143.8075641,192.3,192.22,20.828735]
[1736438559579,143.8075641,192.3,192.23,1.5302]
[1736438559979,143.8075641,192.35,192.24,1.5313]
[1736438560172,36.468735,192.34,192.12,59.05704422]
[1736438560370,20.828735,192.2,192.1,2.6037]
[1736438560574,20.828735,192.2,192.06,4.6189]
[1736438560575,26.008735,192.2,192.06,4.6189]
[1736438561276,2.6031,192.15,192.08,2.6039]
[1736438561471,2.6031,192.15,192.06,4.6189]
[1736438561681,26.008735,192.2,192.06,4.6189]
[1736438561881,20.828735,192.17,192.06,4.6189]
[1736438562381,2.6029,192.17,192.1,2.6036]
[1736438562585,2.6029,192.17,192.06,4.6189]
[1736438563289,26.008735,192.2,192.06,4.6189]
[1736438563484,2.6029,192.16,192.06,4.6189]
[1736438563679,26.008735,192.2,192.1,2.6037]
[1736438563887,26.008735,192.2,192.06,4.6189]
[1736438564189,2.6027,192.18,192.11,2.6035]
[1736438564389,143.8075641,192.22,192.06,25.447635]
[1736438564590,5.18,192.22,192.06,25.447635]
[1736438565680,2.6022,192.21,192.15,2.603]
[1736438566285,2.6023,192.2,192.13,2.6031]
[1736438566486,2.6023,192.2,192.06,25.447635]
[1736438566691,5.18,192.22,192.06,25.447635]
[1736438566992,2.6022,192.21,192.15,2.6029]
[1736438567192,20.828735,192.23,192.09,20.828735]
[1736438567393,2.602,192.23,192.14,2.6031]
[1736438567588,2.602,192.23,192.09,20.828735]
[1736438567886,0.435,192.28,192.12,20.828735]
[1736438568093,26.886535,192.29,192.15,20.828735]
[1736438568291,26.886535,192.29,192.12,20.828735]
[1736438568592,2.6018,192.24,192.18,2.6025]
[1736438568987,20.828735,192.26,192.12,20.828735]
[1736438569188,26.886535,192.29,192.12,20.828735]
[1736438569892,2.6014,192.28,192.21,2.6021]
[1736438570793,2.6014,192.27,192.21,2.6021]
[1736438571794,26.886535,192.29,192.12,20.828735]
[1736438571989,143.8075641,192.35,192.13,5.18]
[1736438571990,20.828735,192.32,192.13,5.18]
[1736438572194,20.828735,192.32,192.16,20.828735]
[1736438572396,20.828735,192.32,192.17,3.1065]
[1736438572589,5.18,192.33,192.17,3.1065]
[1736438572894,2.6007,192.32,192.26,2.6014]
[1736438573094,20.828735,192.35,192.19,20.828735]
[1736438573293,26.008735,192.35,192.19,20.828735]
[1736438573494,2.6006,192.33,192.23,2.6018]
[1736438573695,26.008735,192.35,192.19,20.828735]
[1736438574193,2.6006,192.33,192.19,20.828735]
[1736438574590,26.008735,192.35,192.17,3.1065]
[1736438574899,20.828735,192.32,192.17,3.1065]
[1736438575394,2.6011,192.29,192.23,2.6018]
[1736438575595,2.6011,192.29,192.17,3.1065]
[1736438575995,2.601,192.3,192.17,3.1065]
[1736438576191,20.828735,192.32,192.18,20.828735]
[1736438576390,26.008735,192.35,192.18,20.828735]
[1736438576587,2.6007,192.32,192.27,2.6013]
[1736438577697,2.6007,192.32,192.18,20.828735]
[1736438577898,2.6007,192.32,192.28,2.6012]
[1736438578096,26.008735,192.35,192.21,20.828735]
[1736438578097,20.828735,192.35,192.21,20.828735]
[1736438578295,5.18,192.36,192.26,2.6015]
[1736438578595,20.828735,192.41,192.24,20.828735]
[1736438578795,5.18,192.4,192.24,20.828735]
[1736438579098,2.6003,192.35,192.31,2.6008]
[1736438579297,20.828735,192.38,192.24,20.828735]
[1736438579492,20.828735,192.35,192.22,1.6267]
[1736438579697,2.6008,192.32,192.28,2.6012]
[1736438580393,20.828735,192.38,192.24,20.828735]
[1736438580799,2.6002,192.36,192.24,20.828735]
[1736438581399,2.6002,192.36,192.31,2.6008]
[1736438581799,20.828735,192.38,192.24,20.828735]
[1736438581800,2.6,192.38,192.24,20.828735]
[1736438581996,2.6,192.38,192.33,2.6005]
[1736438582398,2.6,192.37,192.33,2.6005]
[1736438584005,2.6,192.38,192.33,2.6005]
[1736438584505,2.6,192.38,192.24,20.828735]
[1736438584506,2.6,192.38,192.34,2.6004]
[1736438586807,20.828735,192.46,192.3,20.828735]
[1736438587004,20.828735,192.46,192.31,1.5058]
[1736438587708,22.137335,192.49,192.33,20.828735]
[1736438588107,2.5986,192.48,192.33,20.828735]
[1736438588409,164.73188332,192.52,192.36,20.828735]
[1736438588709,20.828735,192.52,192.37,3.0276]
[1736438588912,5.6115,192.54,192.37,3.0276]
[1736438589107,2.5984,192.49,192.37,3.0276]
[1736438589310,26.008735,192.54,192.37,3.0276]
[1736438589602,2.5981,192.52,192.46,2.5987]
[1736438589799,26.008735,192.54,192.46,2.5987]
[1736438590005,2.5986,192.48,192.42,2.5993]
[1736438590302,2.5986,192.48,192.37,3.0276]
[1736438590504,2.5986,192.48,192.37,23.856335]
[1736438590907,20.828735,192.5,192.37,3.0276]
[1736438591210,20.828735,192.47,192.31,22.334535]
[1736438591409,2.5996,192.4,192.32,3.1255]
[1736438591709,20.828735,192.44,192.34,2.6003]
[1736438592110,2.5996,192.41,192.32,3.1255]
[1736438592809,2.5996,192.41,192.35,2.6002]
[1736438593118,2.5996,192.41,192.32,3.1255]
[1736438593308,20.828735,192.44,192.32,3.1255]
[1736438593604,2.5993,192.42,192.32,3.1255]
[1736438593814,5.16,192.45,192.32,3.1255]
[1736438594013,2.5992,192.44,192.32,3.1255]
[1736438594517,2.5992,192.44,192.38,2.5998]
[1736438594710,2.5992,192.43,192.38,2.5998]
[1736438594909,5.16,192.45,192.32,3.1255]
[1736438595109,2.5996,192.4,192.35,2.6003]
[1736438595309,20.828735,192.41,192.31,1.5058]
[1736438595621,20.828735,192.41,192.25,1.6186]
[1736438595916,20.828735,192.41,192.27,20.828735]
[1736438596108,20.828735,192.44,192.27,20.828735]
[1736438596305,2.5999,192.38,192.32,2.6007]
[1736438596516,20.828735,192.44,192.3,20.828735]
[1736438596912,2.5994,192.42,192.36,2.6]
[1736438597214,2.5994,192.42,192.3,20.828735]
[1736438597417,20.828735,192.5,192.33,20.828735]
[1736438597611,20.828735,192.5,192.34,4.6565]
[1736438597612,25.988735,192.5,192.34,4.6565]
[1736438598019,2.5992,192.44,192.38,2.5999]
[1736438598219,2.5992,192.44,192.34,4.6565]
[1736438599018,2.5992,192.44,192.37,2.6]
[1736438599217,2.5991,192.44,192.34,4.6565]
[1736438599618,25.988735,192.5,192.34,4.6565]
[1736438599822,20.828735,192.47,192.34,4.6565]
[1736438600213,20.828735,192.44,192.27,20.828735]
[1736438600516,2.5999,192.38,192.27,20.828735]
[1736438601216,2.5999,192.38,192.33,2.6004]
[1736438601408,20.828735,192.5,192.3,20.828735]
[1736438601718,5.16,192.49,192.4,2.5996]
[1736438601915,25.988735,192.5,192.33,20.828735]
[1736438602109,25.988735,192.5,192.34,1.4959]
[1736438602309,25.988735,192.5,192.38,2.5998]
[1736438602516,25.988735,192.5,192.34,1.4959]
[1736438602720,2.599,192.45,192.38,2.5999]
[1736438602910,25.988735,192.5,192.35,3.1303]
[1736438603112,2.5991,192.45,192.35,3.1303]
[1736438603416,0.433,192.53,192.39,20.828735]
[1736438604113,0.8778,192.54,192.39,20.828735]
[1736438604315,0.8778,192.54,192.44,2.599]
[1736438604516,0.8778,192.54,192.39,20.828735]
[1736438605218,0.8778,192.54,192.46,2.5988]
[1736438605822,2.5982,192.51,192.46,2.5988]
[1736438606017,5.16,192.55,192.42,20.828735]
[1736438606218,20.828735,192.56,192.43,1.5028]
[1736438606517,2.598,192.53,192.49,2.5984]
[1736438606714,0.4307,192.58,192.44,3.1855]
[1736438607518,20.828735,192.62,192.45,20.828735]
[1736438607915,2.5971,192.59,192.55,2.5976]
[1736438608224,2.5971,192.59,192.48,20.828735]
[1736438608616,2.5971,192.59,192.54,2.5976]
[1736438608819,2.5969,192.6,192.48,20.828735]
[1736438609216,143.74168172,192.61,192.53,2.5977]
[1736438609423,2.5971,192.59,192.53,2.5977]
[1736438610022,236.44125758,192.65,192.48,20.828735]
[1736438610023,2.5969,192.6,192.48,20.828735]
[1736438610720,2.5969,192.6,192.55,2.5976]
[1736438611425,2.5968,192.61,192.55,2.5976]
[1736438611727,46.95334407,192.65,192.55,2.5976]
[1736438612023,46.95334407,192.65,192.44,3.1855]
[1736438612230,46.95334407,192.65,192.48,20.828735]
[1736438612528,2.597,192.6,192.48,20.828735]
[1736438612720,2.597,192.6,192.55,2.5975]
[1736438612927,26.12460907,192.66,192.51,20.828735]
[1736438613132,26.12460907,192.66,192.57,20.828735]
[1736438613332,143.74168172,192.68,192.58,3.1414]
[1736438614027,179.67710215,192.7,192.58,3.1414]
[1736438614326,20.828735,192.66,192.52,1.5103]
[1736438614723,2.5967,192.62,192.55,2.5975]
[1736438614925,24.968735,192.66,192.55,2.5975]
[1736438615228,2.5966,192.63,192.56,2.5974]
[1736438615429,4.14,192.66,192.56,2.5974]
[1736438615829,2.5967,192.62,192.56,2.5974]
[1736438616128,2.5967,192.62,192.57,2.5973]
[1736438616430,4.14,192.66,192.52,1.5103]
[1736438616629,24.968735,192.66,192.52,1.5103]
[1736438617023,24.968735,192.66,192.51,1.5167]
[1736438617024,20.828735,192.63,192.51,1.5167]
[1736438617229,20.828735,192.63,192.46,22.453435]
[1736438617430,2.5972,192.58,192.51,2.598]
[1736438617728,5.16,192.61,192.46,22.453435]
[1736438618831,2.5979,192.53,192.46,1.6247]
[1736438619030,21.702435,192.6,192.46,1.6247]
[1736438619228,2.5977,192.54,192.46,1.6247]
[1736438619426,0.8737,192.6,192.46,22.453435]
[1736438619830,2.5974,192.57,192.46,22.453435]
[1736438620325,0.8737,192.6,192.46,22.453435]
[1736438620629,0.8737,192.6,192.46,1.6247]
[1736438620630,21.702435,192.6,192.46,1.6247]
[1736438621533,2.5975,192.56,192.5,2.5982]
[1736438621733,21.702435,192.6,192.5,2.5982]
[1736438622129,21.702435,192.6,192.46,1.6247]
[1736438622436,21.702435,192.6,192.48,2.5985]
[1736438622624,2.5978,192.54,192.46,1.6247]
[1736438623228,0.8737,192.6,192.53,2.5978]
[1736438623434,0.8737,192.6,192.46,22.453435]
[1736438623636,2.5975,192.56,192.46,22.453435]
[1736438624133,6.0337,192.6,192.46,22.453435]
[1736438624331,2.5978,192.54,192.46,22.453435]
[1736438624531,6.0337,192.6,192.46,22.453435]
[1736438624726,2.5973,192.57,192.5,2.5982]
[1736438624931,0.8737,192.6,192.46,22.453435]
[1736438625132,6.0337,192.6,192.46,22.453435]
[1736438625333,6.0337,192.6,192.49,2.5984]
[1736438625532,6.0337,192.6,192.46,22.453435]
[1736438625733,6.0337,192.6,192.49,2.5983]
[1736438626036,2.5978,192.54,192.46,22.453435]
[1736438626236,6.0337,192.6,192.46,22.453435]
[1736438626437,6.0337,192.6,192.49,2.5983]
[1736438627034,2.5976,192.56,192.52,2.598]
[1736438627236,6.0337,192.6,192.46,22.453435]
[1736438627435,4.15,192.63,192.49,20.828735]
[1736438627635,2.5968,192.62,192.52,20.828735]
[1736438628539,2.5968,192.62,192.57,2.5973]
[1736438629430,143.74168172,192.71,192.61,20.828735]
[1736438629634,143.74168172,192.77,192.64,20.828735]
[1736438629836,143.74168172,192.77,192.68,2.5958]
[1736438630031,2.5951,192.74,192.68,2.5958]
[1736438630641,143.74168172,192.77,192.65,1.5913]
[1736438630830,20.828735,192.77,192.65,1.5913]
[1736438631034,5.16,192.76,192.58,20.828735]
[1736438631230,2.5964,192.65,192.59,4.0757]
[1736438631435,20.828735,192.71,192.59,1.4787]
[1736438631631,1.5213,192.7,192.59,1.4787]
[1736438631832,2.5964,192.64,192.59,1.4787]
[1736438632137,5.16,192.68,192.59,1.4787]
[1736438632442,2.5962,192.66,192.61,2.5966]
[1736438632843,2.5962,192.66,192.59,1.4787]
[1736438633032,5.16,192.68,192.63,2.5964]
[1736438633230,5.16,192.68,192.59,1.4787]
[1736438633437,0.8734,192.76,192.61,20.828735]
[1736438633644,6.0334,192.76,192.64,20.828735]
[1736438633944,2.5953,192.72,192.67,2.5958]
[1736438634338,6.0334,192.76,192.64,20.828735]
[1736438634539,6.0334,192.76,192.68,2.5957]
[1736438635345,6.0334,192.76,192.64,20.828735]
[1736438635543,5.16,192.76,192.7,2.5956]
[1736438635744,5.16,192.76,192.64,20.828735]
[1736438636140,5.16,192.76,192.69,2.5956]
[1736438636539,2.5951,192.74,192.69,2.5956]
[1736438636835,5.16,192.76,192.69,2.5956]
[1736438637240,5.16,192.76,192.68,2.5958]
[1736438637436,5.16,192.76,192.61,20.828735]
[1736438638041,20.828735,192.74,192.6,3.0804]
[1736438638341,2.5962,192.65,192.61,2.5967]
[1736438638548,20.828735,192.71,192.59,1.4787]
[1736438638842,2.5966,192.63,192.56,2.5974]
[1736438639047,25.988735,192.68,192.54,4.6418]
[1736438639440,20.828735,192.65,192.54,4.6418]
[1736438639637,23.058735,192.65,192.56,2.5974]
[1736438641343,2.5969,192.61,192.56,2.5974]
[1736438641943,23.058735,192.65,192.54,3.0519]
[1736438642147,23.058735,192.65,192.59,2.5969]
[1736438642148,2.23,192.65,192.59,2.5969]
[1736438643348,2.5965,192.63,192.59,2.5969]
[1736438643551,2.23,192.65,192.6,2.5968]
[1736438643843,4.8264,192.65,192.6,2.5968]
[1736438644247,2.23,192.65,192.62,2.5966]
[1736438644444,2.23,192.65,192.6,20.828735]
[1736438644744,143.74168172,192.72,192.6,20.828735]
[1736438644944,143.74168172,192.72,192.61,1.5759]
[1736438645143,5.16,192.75,192.61,1.5759]
[1736438645544,166.11771672,192.77,192.63,20.828735]
[1736438645746,145.28898172,192.77,192.64,1.5887]
[1736438645941,1.5473,192.77,192.64,1.5887]
[1736438646346,2.5952,192.73,192.69,2.5956]
[1736438646843,2.3447,192.78,192.71,2.5953]
[1736438646844,2.5949,192.76,192.71,2.5953]
[1736438647247,143.74168172,192.81,192.66,20.828735]
[1736438647446,25.462535,192.83,192.64,1.5887]
[1736438647447,143.74168172,192.82,192.74,20.828735]
[1736438647649,147.88168172,192.82,192.77,20.828735]
[1736438648446,4.14,192.82,192.77,20.828735]
[1736438648648,4.14,192.82,192.79,2.5943]
[1736438648843,4.14,192.82,192.77,20.828735]
[1736438649548,4.14,192.82,192.75,2.9683]
[1736438649843,4.14,192.82,192.73,5.16]
[1736438650046,4.14,192.82,192.68,25.387135]
[1736438651044,20.828735,192.81,192.68,4.5584]
[1736438651248,20.828735,192.78,192.68,3.0275]
[1736438651446,20.828735,192.78,192.64,5.16]
[1736438652452,2.5953,192.72,192.66,2.5961]
[1736438653245,20.828735,192.75,192.63,4.5584]
[1736438654655,20.828735,192.75,192.65,2.5961]
[1736438654656,2.5956,192.71,192.65,2.5961]
[1736438654954,1.4893,192.76,192.63,4.5584]
[1736438655150,2.5955,192.71,192.66,2.596]
[1736438655355,20.828735,192.75,192.63,4.5584]
[1736438656856,20.828735,192.78,192.63,25.387135]
[1736438657257,2.595,192.75,192.69,2.5956]
[1736438658161,20.828735,192.78,192.66,2.596]
[1736438658348,20.828735,192.75,192.57,20.828735]
[1736438658553,20.828735,192.78,192.58,1.5529]
[1736438658554,20.828735,192.72,192.58,1.5529]
[1736438658758,2.596,192.68,192.64,2.5963]
[1736438658958,20.828735,192.72,192.58,1.5529]
[1736438659556,5.16,192.71,192.58,1.5529]
[1736438659757,20.828735,192.69,192.58,1.5529]
[1736438660160,2.5964,192.65,192.59,2.597]
[1736438660554,20.828735,192.69,192.59,2.597]
[1736438660955,20.828735,192.69,192.56,1.4947]
[1736438661161,20.828735,192.66,192.51,20.828735]
[1736438661361,20.828735,192.66,192.56,2.5973]
[1736438661551,20.828735,192.66,192.51,20.828735]
[1736438661753,20.828735,192.69,192.54,20.828735]
[1736438662063,5.16,192.69,192.63,2.5965]
[1736438662255,2.5961,192.67,192.57,20.828735]
[1736438662458,25.988735,192.69,192.56,2.5973]
[1736438662657,25.988735,192.69,192.51,20.828735]
[1736438662658,20.828735,192.66,192.51,20.828735]
[1736438662866,2.5974,192.57,192.48,20.828735]
[1736438663162,2.5974,192.57,192.5,2.5982]
[1736438663359,5.16,192.61,192.48,20.828735]
[1736438663662,5.16,192.61,192.51,20.828735]
[1736438663857,5.16,192.61,192.48,20.828735]
[1736438664561,2.5973,192.58,192.51,2.5981]